fUSD/lending_fUSD_20260422
["ID","MTS","AMOUNT","RATE_DAILY","PERIOD"]
[420971880,1776833440860,-1000.0,0.000117,4]
[420971881,1776833440870,-1911.40913703,0.0001176,2]
[420971882,1776833440879,-200.0,0.000118,4]
[420971883,1776833440888,-1004.81530383,0.0001181,2]
[420971884,1776833440897,-474.99471,0.0001188,2]
[420971885,1776833440907,-474.99471,0.0001188,2]
[420971886,1776833440916,-474.99471,0.0001189,2]
[420971887,1776833440926,-152.0,0.00011893,3]
[420971888,1776833440935,-1093.91752428,0.00011899,3]
[420971889,1776833440945,-7736.23610793,0.000119,2]
[420971890,1776833440978,-2263.76389207,0.000119,2]
[420971891,1776833440988,-209.4,0.000119,2]
[420971892,1776833440998,-283.52480577,0.000119,2]
[420971893,1776833441008,-200.0,0.000119,4]
[420971894,1776833441018,-9254.74270422,0.000119,2]
[420971895,1776833441027,-966.55711974,0.000119,2]
[420971896,1776833441041,-170.69574173,0.000119,2]
[420971897,1776833441050,-170.69574158,0.000119,2]
[420971898,1776833441060,-170.69574158,0.000119,2]
[420971899,1776833441070,-218.19190834,0.000119,2]
[420971900,1776833441080,-170.69574158,0.000119,2]
[420971901,1776833441090,-170.69574158,0.000119,2]
[420971902,1776833441099,-170.69574158,0.000119,2]
[420971903,1776833441109,-170.69574158,0.000119,2]
[420971904,1776833441119,-170.69574158,0.000119,2]
[420971905,1776833441129,-170.69574158,0.000119,2]
[420971906,1776833441139,-474.99472,0.0001191,2]
[420971907,1776833441148,-14249.0,0.00011973,2]
[420971908,1776833441158,-327.0,0.00011975,2]
[420971909,1776833441168,-197.68996375,0.00011988,2]
[420971910,1776833441178,-151.0,0.00011997,2]
[420971911,1776833441188,-300.0,0.00011999,2]
[420971912,1776833441197,-1093.91752428,0.00011999,3]
[420971913,1776833441207,-1093.91752428,0.00011999,3]
[420971914,1776833441217,-1116.04031304,0.00011999,3]
[420971915,1776833441227,-958.3900247,0.00011999,2]
[420971916,1776833441236,-4623.6617831,0.00011999,2]
[420971917,1776833441246,-736.0,0.00012,5]
[420971918,1776833441256,-26016.365333,0.00012,2]
[420971919,1776833441268,-18530.95082152,0.00012,2]
[420971920,1776833441628,-223.49,0.0001136,2]
[420971921,1776833441638,-268.18,0.0001165,2]
[420971922,1776833441647,-773.70427528,0.00012,2]
[420971923,1776833441713,-252.63426708,9.396e-05,2]
[420971924,1776833441722,-45151.12361932,0.00012,2]
[420971925,1776833441739,-4584.96360822,0.00012,2]
[420971936,1776833443133,-416.97,0.00011066,2]
[420971937,1776833443142,-170.69574158,0.000119,2]
[420971938,1776833443152,-4107.26493069,0.00012,2]
[420971939,1776833443245,-305.81321456,0.0001176,2]
[420971940,1776833443260,-968.45954346,0.0001176,2]
[420971941,1776833443270,-20.83901654,0.00012,2]
[420971942,1776833443282,-887.00102635,0.00012,2]
[420971946,1776833446275,-1262.0,9.308e-05,2]
[420971947,1776833446285,-11742.66814329,0.00012,2]
[420972075,1776833784163,677.39247328,0.000165,30]
[420972076,1776834394459,11170.0,0.000165,30]
[420972077,1776834410798,150.0,0.00015788,30]
[420972080,1776834632163,-1638.50100735,8.177e-05,2]
[420972083,1776834632216,-530.57794545,8.177e-05,2]
[420972084,1776834632271,-796.34760964,8.177e-05,2]
[420972085,1776834632281,-250.0,8.177e-05,2]
[420972086,1776834632290,-2257.797218,8.178e-05,2]
[420972087,1776834632299,-250.0,8.182e-05,2]
[420972088,1776834632309,-243.59,8.2e-05,2]
[420972089,1776834632318,-1200.0,8.993e-05,2]
[420972090,1776834632327,-221.06475498,8.993e-05,2]
[420972091,1776834632339,-78.93524502,8.993e-05,2]
[420972092,1776834632348,-250.0,8.995e-05,2]
[420972093,1776834632357,-500.0,8.995e-05,2]
[420972094,1776834632366,-500.0,8.995e-05,2]
[420972095,1776834632375,-161.03,9.811e-05,2]
[420972096,1776834632384,-1236.56359201,9.892e-05,2]
[420972098,1776834632852,-443.43640799,9.892e-05,2]
[420972099,1776834632861,-2000.0,9.917e-05,2]
[420972100,1776834632871,-5600.37,9.939e-05,2]
[420972101,1776834632880,-164.27,0.0001,2]
[420972102,1776834632890,-416.26,0.0001,2]
[420972103,1776834632899,-177.75437145,0.0001,2]
[420972104,1776834632910,-160.0,0.00010088,2]
[420972105,1776834632920,-198.31,0.00010129,2]
[420972106,1776834632930,-195.79,0.00010129,2]
[420972107,1776834632939,-637.0,0.00010162,2]
[420972108,1776834632949,-243.0,0.00010223,2]
[420972109,1776834632959,-500.0,0.00010673,2]
[420972110,1776834632969,-500.0,0.00010673,2]
[420972111,1776834632979,-150.0,0.00010689,2]
[420972112,1776834632988,-30550.79547345,0.0001069,3]
[420972113,1776834632999,-500.0,0.00010694,2]
[420972114,1776834633008,-500.0,0.00010694,2]
[420972115,1776834633018,-151.0,0.00010694,2]
[420972116,1776834633028,-151.0,0.00010694,2]
[420972117,1776834633038,-265.06702816,0.00010694,2]
[420972118,1776834633047,-500.0,0.00010694,2]
[420972119,1776834633057,-561.53163569,0.00010694,2]
[420972120,1776834633067,-106083.049759,0.000107,2]
[420972121,1776834633076,-150.0,0.00010701,2]
[420972122,1776834633086,-150.0,0.00010701,2]
[420972123,1776834633097,-150.0,0.00010701,2]
[420972124,1776834633106,-150.0,0.00010701,2]
[420972125,1776834633119,-150.0,0.00010701,2]
[420972126,1776834633128,-150.0,0.00010701,2]
[420972127,1776834633138,-150.0,0.00010716,2]
[420972128,1776834633148,-150.0,0.00010731,2]
[420972129,1776834633158,-150.0,0.00010746,2]
[420972130,1776834633168,-150.0,0.00010761,2]
[420972131,1776834633179,-150.0,0.00010776,2]
[420972132,1776834633189,-150.0,0.00010791,2]
[420972133,1776834633200,-150.0,0.00010805,2]
[420972134,1776834633210,-150.0,0.0001082,2]
[420972135,1776834633220,-150.0,0.00010835,2]
[420972136,1776834633229,-150.0,0.0001085,2]
[420972137,1776834633242,-150.0,0.00010865,2]
[420972138,1776834633254,-500.0,0.00010865,2]
[420972139,1776834633263,-150.0,0.0001088,2]
[420972140,1776834633272,-677.0,0.00010882,2]
[420972141,1776834633282,-150.0,0.00010895,2]
[420972142,1776834633291,-150.0,0.00010909,2]
[420972143,1776834633301,-150.0,0.00010924,2]
[420972144,1776834633310,-150.0,0.00010939,2]
[420972145,1776834633319,-150.0,0.00010954,2]
[420972146,1776834633329,-185.82,0.00010959,2]
[420972147,1776834633339,-150.0,0.00010969,2]
[420972148,1776834633348,-150.0,0.00010984,2]
[420972149,1776834633358,-150.0,0.00010999,2]
[420972150,1776834633367,-150.0,0.00011013,2]
[420972151,1776834633376,-150.0,0.00011028,2]
[420972152,1776834633385,-150.0,0.00011043,2]
[420972153,1776834633395,-150.0,0.00011058,2]
[420972154,1776834633405,-257.672,0.00011066,2]
[420972155,1776834633414,-150.0,0.00011066,2]
[420972156,1776834633424,-150.0,0.00011066,2]
[420972157,1776834633434,-150.0,0.00011066,2]
[420972158,1776834633444,-150.054,0.00011066,2]
[420972159,1776834633454,-1349.0,0.00011066,2]
[420972160,1776834633463,-880.625,0.00011066,2]
[420972161,1776834633473,-6030.0,0.00011066,2]
[420972162,1776834633483,-204.33,0.0001107,2]
[420972163,1776834633492,-150.0,0.00011073,2]
[420972164,1776834633504,-150.0,0.00011088,2]
[420972165,1776834633513,-150.0,0.00011103,2]
[420972166,1776834633523,-150.0,0.00011118,2]
[420972167,1776834633534,-150.0,0.00011132,2]
[420972168,1776834633543,-150.0,0.00011147,2]
[420972169,1776834633554,-2000.0,0.00011157,2]
[420972170,1776834633564,-150.0,0.00011162,2]
[420972171,1776834633574,-150.0,0.00011177,2]
[420972172,1776834633584,-2500.0,0.00011181,2]
[420972173,1776834633594,-150.0,0.00011192,2]
[420972174,1776834633604,-150.0,0.00011207,2]
[420972175,1776834633615,-510.30622654,0.00011221,2]
[420972176,1776834633625,-1000.0,0.00011221,2]
[420972177,1776834633634,-150.0,0.00011222,2]
[420972178,1776834633644,-152.22,0.00011233,2]
[420972179,1776834633654,-150.0,0.00011236,2]
[420972180,1776834633664,-204.33,0.00011244,2]
[420972181,1776834633674,-150.0,0.00011251,2]
[420972182,1776834633684,-150.0,0.00011266,2]
[420972183,1776834633693,-578.20924308,0.00011269,2]
[420972184,1776834633703,-200.0,0.00011269,2]
[420972185,1776834633712,-721.12765535,0.00011269,2]
[420972186,1776834633721,-1428.38747117,0.00011269,2]
[420972187,1776834633731,-151.0,0.00011269,2]
[420972188,1776834633740,-150.0,0.00011281,2]
[420972189,1776834633750,-299.99,0.00011281,2]
[420972190,1776834633760,-2768.6,0.00011281,2]
[420972191,1776834633769,-9999.99,0.00011281,2]
[420972192,1776834633778,-11049.6,0.00011281,2]
[420972193,1776834633787,-999.99,0.00011281,2]
[420972194,1776834633796,-150.99,0.00011281,2]
[420972195,1776834633806,-332.89,0.00011281,2]
[420972196,1776834633815,-1573.77,0.00011281,2]
[420972197,1776834633826,-352.05,0.00011281,2]
[420972198,1776834633835,-150.0,0.00011296,2]
[420972199,1776834633844,-150.0,0.00011296,2]
[420972200,1776834633854,-150.0,0.00011311,2]
[420972201,1776834633865,-151.0,0.00011324,2]
[420972202,1776834633875,-150.0,0.00011326,2]
[420972203,1776834633886,-150.0,0.0001134,2]
[420972204,1776834633896,-150.0,0.00011355,2]
[420972205,1776834633906,-150.0,0.0001137,2]
[420972206,1776834633915,-151.0,0.00011379,2]
[420972207,1776834633925,-150.0,0.00011385,2]
[420972208,1776834633934,-150.0,0.000114,2]
[420972209,1776834633944,-150.0,0.00011415,2]
[420972210,1776834633954,-150.0,0.0001143,2]
[420972211,1776834633963,-151.0,0.00011434,2]
[420972212,1776834633972,-150.0,0.00011445,2]
[420972213,1776834633982,-150.0,0.00011459,2]
[420972214,1776834633991,-150.0,0.00011474,2]
[420972215,1776834634001,-151.0,0.00011489,2]
[420972216,1776834634010,-150.0,0.00011489,2]
[420972217,1776834634020,-150.0,0.00011504,2]
[420972218,1776834634029,-150.0,0.00011519,2]
[420972219,1776834634039,-150.0,0.00011534,2]
[420972220,1776834634048,-150.0,0.00011549,2]
[420972221,1776834634057,-150.0,0.00011563,2]
[420972222,1776834634067,-280.747,0.00011576,2]
[420972223,1776834634076,-4576.516,0.00011576,2]
[420972224,1776834634086,-150.0,0.00011578,2]
[420972225,1776834634095,-255.41,0.00011592,2]
[420972226,1776834634104,-150.0,0.00011593,2]
[420972227,1776834634114,-150.0,0.00011608,2]
[420972228,1776834634123,-150.0,0.00011623,2]
[420972229,1776834634132,-150.0,0.00011638,2]
[420972230,1776834634142,-150.0,0.00011653,2]
[420972231,1776834634152,-150.0,0.00011667,2]
[420972232,1776834634161,-412.0,0.00011672,5]
[420972233,1776834634170,-150.0,0.00011682,2]
[420972234,1776834634180,-150.0,0.00011697,2]
[420972235,1776834634189,-568.11,0.0001171,2]
[420972236,1776834634199,-150.0,0.00011712,2]
[420972237,1776834634208,-255.0,0.00011726,2]
[420972238,1776834634218,-150.0,0.00011727,2]
[420972239,1776834634227,-638.27,0.00011729,2]
[420972240,1776834634237,-150.0,0.00011742,2]
[420972241,1776834634246,-150.0,0.00011757,2]
[420972242,1776834634256,-936.46503677,0.0001176,2]
[420972243,1776834634265,-150.0,0.00011772,2]
[420972244,1776834634275,-1087.47,0.00011786,2]
[420972245,1776834634284,-4042.01,0.00011786,2]
[420972246,1776834634294,-1274.0,0.00011786,2]
[420972247,1776834634303,-150.0,0.00011786,2]
[420972248,1776834634312,-2302.33016701,0.000118,2]
[420972249,1776834634322,-5000.0,0.000118,2]
[420972250,1776834634332,-150.0,0.00011801,2]
[420972251,1776834634341,-150.0,0.00011816,2]
[420972252,1776834634351,-1481.23780761,0.00011817,2]
[420972253,1776834634360,-150.0,0.00011831,2]
[420972254,1776834634370,-150.0,0.00011846,2]
[420972255,1776834634379,-150.0,0.00011861,2]
[420972256,1776834634388,-150.0,0.00011876,2]
[420972257,1776834634398,-158.33157,0.0001188,2]
[420972258,1776834634407,-158.33157,0.0001188,2]
[420972259,1776834634416,-158.33158,0.0001189,2]
[420972260,1776834634426,-266.5926,0.0001189,2]
[420972261,1776834634436,-150.0,0.0001189,2]
[420972262,1776834634445,-304.53641792,0.00011899,2]
[420972263,1776834634455,-200.0,0.00011899,2]
[420972264,1776834634464,-2000.0,0.000119,2]
[420972265,1776834634474,-257904.4694562,0.000119,2]
[420972266,1776834634487,-43083.59694538,0.000119,2]
[420972267,1776834634498,-1254.41808677,0.000119,2]
[420972268,1776834634510,-407.7875021,0.000119,2]
[420972269,1776834634521,-1403.85738872,0.000119,2]
[420972270,1776834634533,-271.17317545,0.000119,2]
[420972271,1776834634552,-2002.04656949,0.000119,2]
[420972272,1776834634564,-689.16136204,0.000119,2]
[420972273,1776834634598,-654.72900572,0.000119,2]
[420972274,1776834634614,-21941.62674712,0.000119,2]
[420972277,1776834638422,-2859.35,9.936e-05,2]
[420972278,1776834638432,-2000.0,0.00011181,2]
[420972279,1776834638441,-624.31002451,0.0001176,2]
[420972280,1776834638451,-34886.6319875,0.000119,2]
[420972281,1776834638578,-904.1959898,0.000119,2]
[420972282,1776834638685,-1492.8292,0.000119,2]
[420972283,1776834638697,-4131.57449147,0.000119,2]
[420972284,1776834638708,-650.24869359,0.000119,2]
[420972285,1776834638791,-2726.590698,0.000119,2]
[420972293,1776834640638,-42874.04108691,0.000119,2]
[420972294,1776834640650,-17018.67899425,0.000119,2]
[420972295,1776834641151,-2876.60675899,0.000119,2]
[420972296,1776834641174,-380.05376625,0.000119,2]
[420972297,1776834641240,-416.206683,0.0001176,2]
[420972298,1776834641249,-328.9277658,0.000119,2]
[420972299,1776834641260,-14998.70486527,0.000119,2]
[420972300,1776834641272,-2943.95635846,0.000119,2]
[420972301,1776834641283,-5239.89376426,0.000119,2]
[420972316,1776834643772,-1220.52685329,0.000119,2]
[420972317,1776834643784,-61474.13010787,0.000119,2]
[420972318,1776834643813,-982.07925712,0.000119,2]
[420972319,1776834643824,-522.62702627,0.000119,2]
[420972320,1776834643834,-2300.18457912,0.000119,2]
[420972321,1776834643853,-343.10411232,0.000119,2]
[420972322,1776834643863,-1141.95986912,0.000119,2]
[420972323,1776834646267,-277.471122,0.0001176,2]
[420972324,1776834646276,-1481.81377532,0.000119,2]
[420972325,1776834646323,-1176.41466757,0.000119,2]
[420972326,1776834646376,-625.54012998,0.000119,2]
[420972327,1776834646431,-101832.04307216,0.000119,2]
[420972328,1776834646696,-289.53899997,0.000119,2]
[420972447,1776834694242,150.0,0.00014933,30]
[420972448,1776834772075,150.0,0.00013926,30]
[420972449,1776834840786,150.0,0.00011446,30]
[420972466,1776835831843,-199.33,8.667e-05,2]
[420972467,1776835831854,-250.0,8.722e-05,2]
[420972468,1776835831863,-315.46954088,8.955e-05,2]
[420972469,1776835831872,-5.88045912,8.958e-05,2]
[420972470,1776835831894,-1194.11954088,8.958e-05,2]
[420972471,1776835831903,-300.0,8.958e-05,2]
[420972472,1776835831912,-150.0,8.958e-05,2]
[420972473,1776835831922,-1355.22194789,8.959e-05,2]
[420972474,1776835831933,-41074.8540976,8.959e-05,2]
[420972475,1776835831944,-388.8323745,8.959e-05,2]
[420972476,1776835831956,-1142.64297778,8.959e-05,2]
[420972477,1776835831967,-1206.96082785,8.959e-05,2]
[420972478,1776835831978,-2412.11522595,8.959e-05,2]
[420972479,1776835831990,-301.48251273,8.959e-05,2]
[420972480,1776835832006,-6267.33691747,8.959e-05,2]
[420972481,1776835832022,-1950.17403298,8.959e-05,2]
[420972482,1776835832034,-1065.16227668,8.959e-05,2]
[420972483,1776835832045,-458.44747329,8.959e-05,2]
[420972484,1776835832058,-7151.59207956,8.959e-05,2]
[420972485,1776835832069,-1559.68,8.959e-05,2]
[420972486,1776835832081,-4775.8559646,8.959e-05,2]
[420972487,1776835832092,-2616.10127688,8.959e-05,2]
[420972488,1776835832110,-574.81083747,8.959e-05,2]
[420972489,1776835832122,-3698.33092069,8.959e-05,2]
[420972491,1776835832133,-37919.78825608,8.959e-05,2]
[420972493,1776835832142,-370.43813962,9.29e-05,2]
[420972495,1776835832152,-162.74,9.35e-05,2]
[420972497,1776835832161,-200.0,9.418e-05,2]
[420972499,1776835832169,-256.26351018,9.518e-05,2]
[420972501,1776835832178,-150.0,9.518e-05,2]
[420972503,1776835832187,-150.0,9.518e-05,2]
[420972506,1776835832196,-150.0,9.518e-05,2]
[420972509,1776835832205,-150.0,9.518e-05,2]
[420972511,1776835832214,-150.0,9.518e-05,2]
[420972514,1776835832224,-1232.33,9.528e-05,2]
[420972517,1776835832236,-150.0,9.533e-05,2]
[420972521,1776835832246,-250.0,9.534e-05,2]
[420972524,1776835832256,-150.0,9.549e-05,2]
[420972528,1776835832266,-500.0,9.563e-05,2]
[420972532,1776835832275,-150.0,9.564e-05,2]
[420972534,1776835832285,-150.0,9.58e-05,2]
[420972536,1776835832295,-150.0,9.596e-05,2]
[420972538,1776835832306,-150.0,9.611e-05,2]
[420972540,1776835832315,-150.0,9.627e-05,2]
[420972542,1776835832325,-150.0,9.642e-05,2]
[420972544,1776835832335,-150.0,9.658e-05,2]
[420972546,1776835832345,-150.0,9.673e-05,2]
[420972549,1776835832355,-150.0,9.689e-05,2]
[420972551,1776835832365,-150.0,9.704e-05,2]
[420972553,1776835832375,-150.0,9.72e-05,2]
[420972555,1776835832384,-150.0,9.736e-05,2]
[420972557,1776835832394,-150.0,9.751e-05,2]
[420972559,1776835832403,-150.0,9.767e-05,2]
[420972561,1776835832412,-150.0,9.782e-05,2]
[420972563,1776835832422,-150.0,9.798e-05,2]
[420972565,1776835832431,-150.0,9.813e-05,2]
[420972567,1776835832440,-150.0,9.829e-05,2]
[420972569,1776835832450,-150.0,9.844e-05,2]
[420972571,1776835832460,-1680.0,9.854e-05,2]
[420972572,1776835832470,-420.0,9.854e-05,2]
[420972573,1776835832480,-255.0,9.854e-05,2]
[420972574,1776835832490,-150.0,9.86e-05,2]
[420972575,1776835832499,-5883.02,9.868e-05,2]
[420972576,1776835832509,-150.0,9.876e-05,2]
[420972577,1776835832519,-370.4381396,9.883e-05,2]
[420972578,1776835832528,-150.0,9.891e-05,2]
[420972579,1776835832537,-523.04,9.893e-05,2]
[420972580,1776835832547,-500.0,9.907e-05,2]
[420972581,1776835832557,-150.0,9.907e-05,2]
[420972582,1776835832566,-150.0,9.922e-05,2]
[420972583,1776835832576,-150.0,9.938e-05,2]
[420972584,1776835832585,-260.03,9.949e-05,2]
[420972585,1776835832595,-150.0,9.953e-05,2]
[420972586,1776835832604,-150.0,9.969e-05,2]
[420972587,1776835832614,-171.44,9.981e-05,2]
[420972588,1776835832623,-150.0,9.984e-05,2]
[420972590,1776835832633,-150.0,0.0001,2]
[420972591,1776835832642,-150.0,0.00010015,2]
[420972593,1776835832652,-150.0,0.00010031,2]
[420972595,1776835832662,-150.0,0.00010047,2]
[420972598,1776835832681,-150.0,0.00010047,2]
[420972600,1776835832692,-150.0,0.00010062,2]
[420972602,1776835832702,-150.0,0.00010078,2]
[420972604,1776835832712,-150.0,0.00010093,2]
[420972606,1776835832722,-150.0,0.00010109,2]
[420972608,1776835832733,-150.0,0.00010124,2]
[420972610,1776835832742,-150.0,0.0001014,2]
[420972612,1776835832753,-150.0,0.00010155,2]
[420972615,1776835832764,-150.0,0.00010171,2]
[420972617,1776835832774,-500.0,0.00010181,2]
[420972619,1776835832784,-236.061185,0.00010182,2]
[420972621,1776835832793,-187.421065,0.00010182,2]
[420972623,1776835832805,-185.903258,0.00010182,2]
[420972625,1776835832815,-227.27009,0.00010182,2]
[420972627,1776835832825,-150.0,0.00010187,2]
[420972629,1776835832834,-150.0,0.00010202,2]
[420972631,1776835832844,-150.0,0.00010218,2]
[420972633,1776835832855,-150.0,0.00010233,2]
[420972635,1776835832865,-150.0,0.00010249,2]
[420972637,1776835832875,-150.0,0.00010264,2]
[420972639,1776835832884,-150.0,0.0001028,2]
[420972641,1776835832894,-304.29762,0.0001028,2]
[420972643,1776835832903,-176.306495,0.0001028,2]
[420972645,1776835832913,-4228.44963586,0.00010293,2]
[420972647,1776835832923,-150.0,0.00010295,2]
[420972649,1776835832932,-150.0,0.00010311,2]
[420972651,1776835832942,-150.0,0.00010327,2]
[420972653,1776835832952,-150.0,0.00010342,2]
[420972655,1776835832961,-150.0,0.00010358,2]
[420972657,1776835832971,-1311.8531,0.00010366,2]
[420972659,1776835832980,-500.0,0.00010373,2]
[420972661,1776835832989,-150.0,0.00010373,2]
[420972663,1776835832999,-370.4381396,0.00010375,2]
[420972665,1776835833009,-150.0,0.00010389,2]
[420972667,1776835833019,-212.87673504,0.00010389,2]
[420972669,1776835833028,-193.92346795,0.00010389,2]
[420972671,1776835833038,-500.0,0.00010389,2]
[420972673,1776835833047,-500.0,0.00010389,2]
[420972675,1776835833057,-500.0,0.00010389,2]
[420972678,1776835833067,-500.0,0.00010389,2]
[420972680,1776835833077,-500.0,0.00010389,2]
[420972682,1776835833087,-500.0,0.00010389,2]
[420972684,1776835833097,-500.0,0.00010389,2]
[420972686,1776835833106,-500.0,0.00010389,2]
[420972688,1776835833115,-500.0,0.00010389,2]
[420972690,1776835833124,-500.0,0.00010389,2]
[420972692,1776835833133,-159.52692651,0.00010389,2]
[420972694,1776835833143,-500.0,0.00010389,2]
[420972696,1776835833152,-500.0,0.00010389,2]
[420972698,1776835833161,-500.0,0.00010389,2]
[420972700,1776835833170,-500.0,0.00010389,2]
[420972702,1776835833180,-500.0,0.00010389,2]
[420972704,1776835833189,-500.0,0.00010389,2]
[420972705,1776835833198,-500.0,0.00010389,2]
[420972706,1776835833207,-500.0,0.00010389,2]
[420972707,1776835833217,-500.0,0.00010389,2]
[420972708,1776835833226,-500.0,0.00010389,2]
[420972709,1776835833235,-253.95639747,0.00010389,2]
[420972710,1776835835306,-246.04360253,0.00010389,2]
[420972711,1776835835315,-500.0,0.00010389,2]
[420972712,1776835835325,-500.0,0.00010389,2]
[420972713,1776835835334,-500.0,0.00010389,2]
[420972714,1776835835343,-500.0,0.00010389,2]
[420972715,1776835835353,-209.56720971,0.00010389,2]
[420972716,1776835835362,-500.0,0.00010389,2]
[420972717,1776835835372,-500.0,0.00010389,2]
[420972718,1776835835381,-265.50483863,0.00010389,2]
[420972719,1776835835390,-414.0444158,0.00010389,2]
[420972720,1776835835400,-500.0,0.00010389,2]
[420972721,1776835835410,-460.50479605,0.00010389,2]
[420972722,1776835835419,-500.0,0.00010389,2]
[420972723,1776835835429,-870.74172603,0.00010389,2]
[420972724,1776835835438,-870.74172603,0.00010389,2]
[420972725,1776835835447,-870.74172603,0.00010389,2]
[420972726,1776835835457,-870.74172603,0.00010389,2]
[420972727,1776835835467,-870.74172603,0.00010389,2]
[420972728,1776835835476,-870.74172603,0.00010389,2]
[420972729,1776835835485,-870.74172603,0.00010389,2]
[420972730,1776835835495,-870.74172603,0.00010389,2]
[420972731,1776835835504,-870.74172603,0.00010389,2]
[420972732,1776835835514,-870.74172603,0.00010389,2]
[420972733,1776835835523,-870.74172603,0.00010389,2]
[420972734,1776835835532,-870.74172603,0.00010389,2]
[420972735,1776835835542,-667.81108324,0.00010389,2]
[420972736,1776835835555,-202.93064279,0.00010389,2]
[420972737,1776835835566,-870.74172603,0.00010389,2]
[420972738,1776835835575,-870.74172603,0.00010389,2]
[420972739,1776835835586,-870.74172603,0.00010389,2]
[420972740,1776835835595,-870.74172603,0.00010389,2]
[420972741,1776835835604,-870.74172603,0.00010389,2]
[420972742,1776835835614,-870.74172603,0.00010389,2]
[420972743,1776835835623,-870.74172603,0.00010389,2]
[420972744,1776835835632,-870.74172603,0.00010389,2]
[420972745,1776835835642,-870.74172603,0.00010389,2]
[420972746,1776835835651,-870.74172603,0.00010389,2]
[420972747,1776835835660,-870.74172603,0.00010389,2]
[420972748,1776835835670,-870.74172603,0.00010389,2]
[420972749,1776835835681,-870.74172603,0.00010389,2]
[420972750,1776835835690,-870.74172603,0.00010389,2]
[420972751,1776835835700,-870.74172603,0.00010389,2]
[420972752,1776835835709,-870.74172603,0.00010389,2]
[420972753,1776835835719,-495.74457544,0.00010389,2]
[420972763,1776835837664,-374.99715059,0.00010389,2]
[420972764,1776835837674,-775.03798292,0.00010389,2]
[420972765,1776835837880,-95.70374311,0.00010389,2]
[420972766,1776835837890,-870.74172603,0.00010389,2]
[420972767,1776835837900,-870.74172603,0.00010389,2]
[420972768,1776835837910,-870.74172603,0.00010389,2]
[420972769,1776835837921,-870.74172603,0.00010389,2]
[420972770,1776835837931,-518.7663182,0.00010389,2]
[420972771,1776835837943,-351.97540783,0.00010389,2]
[420972772,1776835837954,-185.85338704,0.00010389,2]
[420972773,1776835837965,-33.36047514,0.00010389,2]
[420972774,1776835837977,-837.38125089,0.00010389,2]
[420972775,1776835837987,-843.94967291,0.00010389,2]
[420972776,1776835837997,-798.92166548,0.00010389,2]
[420972777,1776835838013,-45.02800743,0.00010389,2]
[420972778,1776835838023,-285.44937119,0.00010389,2]
[420972783,1776835839922,-3515.349692,8.624e-05,2]
[420972784,1776835839931,-558.50030172,0.00010389,2]
[420972785,1776835839941,-843.94967291,0.00010389,2]
[420972786,1776835839950,-843.94967291,0.00010389,2]
[420972787,1776835839959,-843.94967291,0.00010389,2]
[420972788,1776835839968,-269.40368254,0.00010389,2]
[420972789,1776835839979,-574.54599037,0.00010389,2]
[420972790,1776835839989,-843.94967291,0.00010389,2]
[420972791,1776835839998,-843.94967291,0.00010389,2]
[420972792,1776835840008,-843.94967291,0.00010389,2]
[420972793,1776835840017,-843.94967291,0.00010389,2]
[420972794,1776835840027,-843.94967291,0.00010389,2]
[420972795,1776835840036,-843.94967291,0.00010389,2]
[420972796,1776835840045,-843.94967291,0.00010389,2]
[420972797,1776835840055,-843.94967291,0.00010389,2]
[420972798,1776835840064,-124.14547772,0.00010389,2]
[420972799,1776835840088,-719.80419519,0.00010389,2]
[420972800,1776835840097,-407.26191673,0.00010389,2]